[Event "XV American Continental 2022"]
[Site "San Salvador"]
[Date "2022.05.10"]
[Round "11.8"]
[White "Pichot, Alan"]
[Black "Ramirez Osio, Julio Adrian"]
[Result "1-0"]
[ECO "B27"]
[WhiteElo "2652"]
[BlackElo "2143"]
[Annotator "TA"]
[PlyCount "67"]
[EventDate "2022.05.02"]
[EventCountry "ESA"]
[SourceTitle "playchess.com"]
[Source "ChessBase"]
[SourceQuality "1"]
[TimeControl "40/5400+30:1800+30"]

{[%evp 11,67,24,35,36,40,7,2,6,20,2,14,12,6,12,44,40,41,32,47,40,56,51,54,48,50,52,66,72,53,0,0,-7,0,-6,-2,-25,0,0,121,107,125,109,130,137,143,110,175,141,141,141,142,141,160,145,146,122,211,205]} 1. e4 {[%emt 0:00:05]} c5 {[%emt 0:01:09]} 2. Nf3 {[%emt 0:00:06]} g6 {[%emt 0:00:05]} 3. c3 {[%emt 0:00:52]} Bg7 {[%emt 0:01:01]} 4. d4 {[%emt 0:00:06]} cxd4 {[%emt 0:00:12]} 5. cxd4 {[%emt 0:00:07]} d5 {[%emt 0:00:55]} 6. e5 {[%emt 0:00:13]} Bg4 {[%emt 0:00:39]} 7. Bb5+ {[%emt 0:00:21] B27: Sicilian: 2 Nf3, unusual Black 2nd moves.} Nd7 {[%emt 0:01:15] is the new trend.} 8. Nc3 {[%emt 0:05:25]} e6 {[%emt 0:00:20]} 9. O-O {[%emt 0:01:37] The position is equal.} Ne7 {[%emt 0:00:33]} 10. h3 Bxf3 {[%emt 0:00:08]} 11. Qxf3 {[%emt 0:02:17]} O-O {[%emt 0:02:58]} 12. Bg5 {[%emt 0:07:40][%cal Bc1g5,Bg5h4,Bh4g3][%mdl 32]} h6 {[%emt 0:04:01]} 13. Bh4 {[%emt 0:01:28]} g5 {[%emt 0:05:09]} 14. Bg3 {[%emt 0:01:01]} Nf5 {[%emt 0:00:56]} 15. Rad1 {[%emt 0:00:26] [#]} Nb6 $146 {[%emt 0:14:37]} ({Predecessor:} 15... a6 16. Ba4 Rc8 17. Bc2 Nxg3 18. Qxg3 f5 19. exf6 Rxf6 20. Qd3 Nf8 21. g3 Qe8 {1-0 (64) Chen,R (1793)-Higashino,T (2211) Tokyo 2018}) 16. Qg4 {[%emt 0:10:06]} Rc8 {[%emt 0:02:31]} 17. Bd3 {[%emt 0:11:09]} Nxg3 {[%emt 0:01:53]} 18. Qxg3 {[%emt 0:00:55]} Nc4 {[%emt 0:00:15]} 19. Bxc4 {[%emt 0:06:50]} Rxc4 {[%emt 0:00:10]} 20. Qd3 {[%emt 0:00:13]} (20. b3 $14 Rc6 21. Nb5) 20... f6 $11 {[%emt 0:11:16]} 21. exf6 {[%emt 0:01:25]} Qxf6 {[%emt 0:01:05]} 22. Ne2 {[%emt 0:00:10]} Qf5 {[%emt 0:04:11]} 23. Qb3 {[%emt 0:01:33]} Qc2 {[%emt 0:03:29]} 24. Qe3 {[%emt 0:00:10]} Qxb2 {[%emt 0:01:57]} (24... Qf5 $11) 25. Qxe6+ {[%emt 0:01:10]} Kh8 {[%emt 0:00:05]} 26. Rb1 {[%emt 0:01:20][%cal Bd1b1,Bb1b7,Bb7a7][%mdl 32]} Qxa2 {[%emt 0:04:46]} 27. Rxb7 {[%emt 0:00:30] [#] Strongly threatening Ng3.} Qc2 {[%emt 0:01:28]} 28. Rxa7 {[%emt 0:06:42]} Qe4 {[%emt 0:03:16]} (28... Qf5 $16 29. Qe3 (29. Qe7 Qf6 $16) 29... Rcc8) 29. Qxe4 {[%emt 0:03:48]} dxe4 {[%emt 0:00:04] [#]} 30. Re7 $1 {[%emt 0:00:08]} Rb8 {[%emt 0:07:40]} (30... Bxd4 $2 31. Rxe4 Bxf2+ 32. Rxf2 $18) 31. Rxe4 {[%emt 0:01:08]} Rb2 {[%emt 0:00:03]} 32. Rd1 {[%emt 0:02:52]} Rcc2 {[%emt 0:00:23]} 33. Kf1 {[%emt 0:00:06]} Kh7 {[%emt 0:00:41]} (33... Bxd4 $16 34. Nxd4 Rxf2+ 35. Ke1 Rxg2) 34. g4 {[%emt 0:00:49] Weighted Error Value: White=0.11 (very precise) /Black=0.20 (precise)} 1-0

[Event "XV American Continental 2022"]
[Site "San Salvador"]
[Date "2022.05.10"]
[Round "11.9"]
[White "Diaz Rosas, Julio Cesar"]
[Black "Valdes Romero, Leonardo"]
[Result "1/2-1/2"]
[ECO "B07"]
[WhiteElo "2351"]
[BlackElo "2403"]
[Annotator "TA"]
[PlyCount "107"]
[EventDate "2022.05.02"]
[EventCountry "ESA"]
[SourceTitle "playchess.com"]
[Source "ChessBase"]
[SourceQuality "1"]
[TimeControl "40/5400+30:1800+30"]

{[%evp 15,107,35,46,41,40,44,43,31,59,58,63,68,73,35,25,25,95,99,91,103,87,83,115,76,84,77,77,64,133,93,95,52,101,93,92,46,58,28,12,43,44,62,161,138,134,150,212,220,214,231,241,263,255,245,399,388,365,343,553,538,486,72,71,35,37,38,52,0,0,0,0,0,0,0,0,0,0,0,0,0,0,0,0,0,0,0,0,0,0,0,0,0,0,0]} 1. e4 {[%emt 0:00:06]} d6 {[%emt 0:05:10]} 2. d4 {[%emt 0:00:18]} Nf6 {[%emt 0:00:09]} 3. Nc3 {[%emt 0:00:06]} g6 {[%emt 0:00:07]} 4. Bg5 {[%emt 0:02:04]} Bg7 {[%emt 0:00:45]} 5. Nf3 {[%emt 0:00:11]} c6 {[%emt 0:01:46]} 6. Qd2 {[%emt 0:00:16]} b5 {[%emt 0:03:44]} 7. Bd3 {[%emt 0:00:44]} O-O {[%emt 0:00:19]} 8. Bh6 {[%emt 0:00:19]} Nbd7 {[%emt 0:00:58]} 9. Bxg7 {[%emt 0:00:40] B08: Pirc Defence: Classical System.} (9. e5 {looks sharper.} dxe5 10. dxe5 Ng4 11. Bxg7 Kxg7 12. Qg5) 9... Kxg7 {[%emt 0:00:05]} 10. a4 {[%emt 0:00:00]} b4 {[%emt 0:02:26]} 11. Ne2 {[%emt 0:00:17] White is slightly better.} Qa5 {[%emt 0:00:11] Against e5} 12. Ng3 {[%emt 0:04:56] [#]} Rh8 $146 {[%emt 0:18:12]} ({Predecessor:} 12... h6 13. h4 e5 14. h5 Rh8 15. Nh4 Nf8 16. Bc4 Bg4 17. hxg6 fxg6 18. Bb3 Re8 {1-0 (61) Kapnisis,S (2373)-Vajda,L (2507) Athens 2001}) 13. h4 {[%emt 0:07:40][%cal Oh4h5]} h5 {[%emt 0:00:43]} 14. e5 {[%emt 0:06:54]} dxe5 {[%emt 0:19:30]} 15. Qg5 {[%emt 0:00:04][%cal Rd4e5]} Ng8 {[%emt 0:05:58]} (15... Nd5 $11 {keeps the balance.}) 16. O-O $16 {[%emt 0:04:54][%cal Rd4e5]} (16. dxe5 Nc5 $14) 16... Nf8 {[%emt 0:04:40]} 17. Qxe5+ {[%emt 0:04:23]} Qxe5 {[%emt 0:03:05]} 18. Nxe5 {[%emt 0:00:07]} Bb7 {[%emt 0:00:42][%cal Oc6c5]} 19. a5 {[%emt 0:00:19][%cal Ba4a5,Ba5a6][%mdl 32]} Rd8 {[%emt 0:00:28]} 20. a6 {[%emt 0:00:35]} Ba8 {[%emt 0:00:20]} 21. Be4 {[%emt 0:00:16]} f6 {[%emt 0:13:11]} ({Black should play} 21... Nd7 $14) 22. Nf3 {[%emt 0:13:46] White is much more active. The black rooks are badly placed.} Ne6 {[%emt 0:02:34]} 23. c3 $36 {[%emt 0:00:30][%mdl 2048] White is more active.} bxc3 {[%emt 0:07:00]} (23... f5 $1 $14) 24. bxc3 {[%emt 0:01:33]} f5 {[%emt 0:00:33]} 25. Bc2 {[%emt 0:08:49]} (25. Bd3 $16) 25... c5 $14 {[%emt 0:00:26]} 26. Bb3 {[%emt 0:02:17]} (26. Rfe1 $5 {[%cal Re1e6]} Bxf3 27. gxf3 $14) 26... Nf4 {[%emt 0:00:31]} 27. dxc5 {[%emt 0:07:44]} Bxf3 {[%emt 0:01:53]} 28. gxf3 {[%emt 0:00:04]} Rc8 {[%emt 0:00:15]} (28... Nh6 $14) 29. Rfd1 {[%emt 0:06:15][%cal Bf1d1,Bd1d4,Bd4b4,Bb4b7][%mdl 32]} Nf6 {[%emt 0:02:04]} 30. Rd4 {[%emt 0:00:22]} e5 {[%emt 0:01:27]} (30... Rb8 $16 {was worth a try.}) 31. Rb4 $18 {[%emt 0:00:06]} Rh7 {[%emt 0:01:52]} 32. Rd1 {[%emt 0:03:26]} Kf8 {[%emt 0:03:20]} 33. Rb7 {[%emt 0:01:20] [#] Prevents Rd7. Strongly threatening Rd6.} Re7 {[%emt 0:00:06]} 34. Ba4 {[%emt 0:03:19]} N4d5 $2 {[%emt 0:01:10]} (34... Ne6) 35. c4 {[%emt 0:00:50]} Nc3 {[%emt 0:00:46]} 36. Rd6 {[%emt 0:00:05]} Nxa4 $2 {[%emt 0:00:40]} (36... Kf7 {might work better.}) 37. Rxf6+ {[%emt 0:00:22]} Kg7 {[%emt 0:00:04] [#]} 38. Re6 {[%emt 0:00:25]} (38. Rxe7+ Kxf6 39. Rxa7 Rxc5 $16) (38. Rxf5 $1 $18 {[%mdl 512] and the rest is easy.} gxf5 39. Nxf5+ Kf7 40. Nxe7 (40. Rxe7+ Kf6 $16) 40... Rxc5 41. Nd5+ Ke6 42. Nc7+ Kf5 43. Nb5) 38... Rf7 $16 {[%emt 0:00:31]} 39. c6 {[%emt 0:01:07]} ({Much worse is} 39. Rxe5 $6 Nxc5 40. Rxf7+ Kxf7 $11) 39... Nc5 {[%emt 0:00:26][%csl LRa6,LRb7,LRe6][%cal Ba4c5,Bc5a6,Ba6b8,Bb8c6,Bc6e7][%mdl 32]} 40. Rd6 {[%emt 0:10:54]} ({Much weaker is} 40. Rxe5 Rxc6 41. Rb1 Kf6 $15) 40... Nxa6 {[%emt 0:01:25]} 41. f4 {[%emt 0:30:10]} (41. c5 $1 $14) 41... Nb8 $11 {[%emt 0:25:12] The position is equal.} 42. fxe5 {[%emt 0:00:00]} Nxc6 {[%emt 0:01:41]} 43. Rb5 {[%emt 0:00:00]} Rfc7 {[%emt 0:01:30]} 44. Ne2 {[%emt 0:00:00] And now Nf4 would win.} a6 {[%emt 0:02:20]} 45. Rc5 {[%emt 0:00:00]} Ne7 {[%emt 0:00:04]} 46. Rxc7 {[%emt 0:00:00]} Rxc7 {[%emt 0:00:01][%mdl 4096] Endgame KRN-KRN} 47. Nf4 {[%emt 0:00:00] Hoping for Ne6+.} ({Don't play} 47. Rxa6 Rxc4 48. Ra7 Kf8 $15) 47... Rxc4 {[%emt 0:00:17]} 48. Ne6+ {[%emt 0:00:00]} Kf7 {[%emt 0:00:08]} 49. Ng5+ {[%emt 0:00:00]} Ke8 {[%emt 0:00:42]} 50. Rxa6 {[%emt 0:00:00]} Rxh4 {[%emt 0:00:51] aiming for ...Rg4+.} 51. Ra8+ {[%emt 0:00:00]} Kd7 {[%emt 0:00:08] White must now prevent ...Rg4+.} 52. Ra7+ {[%emt 0:00:00]} Ke8 {[%emt 0:00:14] Threatens to win with ...Rg4+.} 53. Ra8+ {[%emt 0:00:00]} Kd7 {[%emt 0:00:04] ...Rg4+ is the strong threat.} 54. Ra7+ {[%emt 0:00:00] Blacks defense is rewarded with a draw.  Weighted Error Value: White=0.30/Black=0.18 (very precise)} 1/2-1/2

[Event "XV American Continental 2022"]
[Site "San Salvador"]
[Date "2022.05.10"]
[Round "11.10"]
[White "Mekhitarian, Krikor Sevag"]
[Black "Leon Calderon, Jonathan"]
[Result "1-0"]
[ECO "A09"]
[WhiteElo "2569"]
[BlackElo "2126"]
[Annotator "TA"]
[PlyCount "27"]
[EventDate "2022.05.02"]
[EventCountry "ESA"]
[SourceTitle "playchess.com"]
[Source "ChessBase"]
[SourceQuality "1"]
[TimeControl "40/5400+30:1800+30"]

{[%evp 9,27,-9,0,-12,0,0,0,-53,79,20,79,81,174,148,160,147,128,89,267,270]} 1. Nf3 {[%emt 0:00:02]} d5 {[%emt 0:00:50]} 2. c4 {[%emt 0:00:04][%cal Bc2c4,Bc4c5][%mdl 32]} d4 {[%emt 0:00:45]} 3. b4 {[%emt 0:01:55]} c5 {[%emt 0:00:41]} 4. e3 {[%emt 0:02:33]} f6 {[%emt 0:02:35]} 5. exd4 {[%emt 0:01:38]} cxd4 {[%emt 0:00:39]} 6. c5 {A09: Réti Opening: 1 Nf3 d5 2 c4.} e5 {[%emt 0:03:47]} 7. Bc4 {[%emt 0:03:44] Prevents Be6. And now Qb3 would win.} a5 {[%emt 0:00:30] [#]} 8. O-O $146 {[%emt 0:02:02]} (8. Qb3 $11 Nh6 9. d3) ({Predecessor:} 8. Qb3 Nh6 9. d3 axb4 10. Bxh6 gxh6 11. Nbd2 Nc6 12. Ne4 Ra3 13. Qd1 f5 14. Ng3 {1-0 (70) Alekseev,E (2639)-Usmanov,V (2450) St Petersburg 2018}) 8... Bg4 {[%emt 0:04:21] [#]} (8... axb4 $15 {stays ahead.} 9. Qb3 Nh6) 9. d3 {[%emt 0:05:31]} ({White should try} 9. Qb3 $1 $16 Nh6 10. d3) 9... Be7 {[%emt 0:03:27]} (9... axb4 $11 10. Qb3 Ne7) 10. bxa5 $16 {[%emt 0:51:09] White is more active.} Bxc5 {[%emt 0:15:45]} (10... Nd7 $16) 11. Nbd2 $18 {[%emt 0:01:10] Black must now prevent Rb1.} ({Not} 11. Qb3 Ne7 $11) 11... Nc6 {[%emt 0:04:19]} 12. a6 {[%emt 0:02:08]} bxa6 {[%emt 0:01:40]} 13. Qa4 {[%emt 0:01:24]} Bd7 {[%emt 0:01:55] [#]} (13... Nge7 $16 {was worth a try.}) 14. Bxg8 {[%emt 0:00:53] Weighted Error Value: White=0.21 (precise) /Black=0.61} 1-0

[Event "XV American Continental 2022"]
[Site "San Salvador"]
[Date "2022.05.10"]
[Round "11.11"]
[White "Krysa, Leandro"]
[Black "Arias Gaviria, Mario Alexis"]
[Result "1-0"]
[ECO "E16"]
[WhiteElo "2525"]
[BlackElo "2181"]
[Annotator "TA"]
[PlyCount "167"]
[EventDate "2022.05.02"]
[EventCountry "ESA"]
[SourceTitle "playchess.com"]
[Source "ChessBase"]
[SourceQuality "1"]
[TimeControl "40/5400+30:1800+30"]

{[%evp 13,167,19,29,25,30,32,53,50,65,46,60,75,120,120,154,164,160,168,171,166,156,165,168,157,208,206,191,212,204,212,230,234,229,230,221,219,233,192,195,159,221,215,221,213,213,215,219,155,149,159,153,158,216,211,212,182,187,155,137,137,182,144,165,160,156,129,222,176,169,141,208,208,208,208,208,179,278,179,207,178,454,434,371,331,329,154,287,208,219,72,72,70,67,57,280,208,208,208,722,722,5066,5023,2121,1906,1356,722,10707,8693,5925,5035,2372,1623,29968,29971,29970,29971,29970,29973,29968,29968,29968,29966,29979,29980,29983,29984,29984,29982,29982,29983,29985,29986,29987,29988,29988,29989,29989,29990,29990,29991,29991,29992,29992,29993,29993,29994,29994,29993,29993,29994,29994,29995,29996,29995,29995,29996]} 1. d4 Nf6 2. c4 e6 3. Nf3 Bb4+ 4. Bd2 Qe7 5. g3 O-O 6. Bg2 d5 7. O-O dxc4 8. Qc2 {E11: Bogo-Indian.} Nc6 9. Qxc4 Bd6 {Inhibits Ne5.} 10. Nc3 {[#] White is slightly better.} e5 $146 ({Predecessor:} 10... h6 11. e4 e5 12. d5 Nb8 13. Nb5 Nbd7 14. Rfc1 Ne8 15. Nh4 Nb6 16. Qb3 Bd7 {1-0 (30) Eriksson,M-Adler,B (2245) Sweden 2002}) 11. d5 Na5 12. Qh4 Bd7 13. Rac1 b6 14. Bg5 $1 Bf5 {Inhibits Ne4.} 15. Nd2 h6 16. Bxf6 Qxf6 17. Qxf6 gxf6 18. Nce4 Bxe4 (18... Nb7 $16 19. f4 (19. Nxf6+ Kg7 $16) 19... Bxe4) 19. Nxe4 $18 (19. Bxe4 $6 Rfd8 20. Bf5 Nb7 $16) 19... Nb7 20. Nxf6+ Kg7 21. Ne4 a5 22. Nxd6 cxd6 23. Rc6 Rfd8 24. f4 exf4 25. gxf4 Nc5 26. e4 (26. Rxb6 $6 Rab8 27. Rxb8 Rxb8 $16) 26... Rac8 (26... Ra7 $16 27. Rxb6 Re7) 27. e5 ({Don't play} 27. Rxb6 $6 Rb8 28. Rxb8 Rxb8) 27... Rxc6 28. dxc6 dxe5 29. fxe5 {[%mdl 4096] Endgame KRB-KRN} Na6 30. Rc1 Nc7 31. Rc2 {Inhibits Rd2.} Re8 32. Re2 Re6 (32... Rd8 $16 33. Bf3 Kg6 34. Be4+ Kg7) 33. Kf2 Kf8 34. Re3 Ke8 35. Rb3 Rxe5 36. Rxb6 Rc5 37. a3 Rc2+ 38. Kg3 Ke7 39. Bf3 Rd2 (39... Kd6 $16 {is a better defense.} 40. h4 a4) 40. Rb7 Kd6 41. Rb8 Ke7 {Prevents Rd8.} (41... Ne6 $16 42. Rb7 Nc7) 42. b4 axb4 43. axb4 Rb2 44. h4 Ke6 (44... Rb3 $142 45. h5 Rb2) 45. Kf4 Kd6 46. Be4 Na6 $2 (46... Rf2+ 47. Bf3 Rb2 48. Rd8+ Ke6) 47. Rd8+ Ke6 48. Rd4 Nc7 49. h5 (49. Bd3 $18 {is the precise move to win.}) 49... Kf6 (49... Nb5 $16 50. Rc4 Kd6) 50. Ke3 {Rd7 is the strong threat.} Ke5 51. Rc4 (51. Rd7 $18 {has better winning chances.} Rb3+ 52. Bd3 Nd5+ 53. Kd2 Rb2+ 54. Kd1) 51... Kd6 52. Bf3 {Black must now prevent Rd4+.} Rb3+ 53. Kf2 {And now Rd4+ would win.} Na6 $2 {Black cannot hold the game after this.} (53... Ne6 $14) 54. Rd4+ Ke5 55. Rd7 {Strongly threatening Re7+.} Nxb4 $2 {[#]} (55... Rxb4 56. Re7+ (56. Rxf7 Rc4 $16) 56... Kf6) 56. c7 $1 Rb2+ 57. Kg3 Rc2 {[#]} 58. Bb7 $1 Rc3+ 59. Kg2 Rc2+ 60. Kf1 Rc1+ 61. Ke2 Rc2+ 62. Kd1 Ke6 63. c8=Q {White mates.} Rxc8 64. Bxc8 Nd5 65. Rd8+ Ke5 66. Rh8 Ne7 67. Bd7 Kf6 68. Rxh6+ Kg7 69. Rd6 Ng8 70. Bf5 Nh6 71. Bd3 Ng4 72. Ke2 Nh6 73. Kf3 Ng8 74. Kf4 Nh6 75. Kg5 f6+ 76. Rxf6 Nf7+ 77. Kf5 Nh6+ 78. Ke6 Ng4 79. Rg6+ Kh8 80. Kf5 Ne3+ 81. Kg5 Nd5 82. Rd6 Ne7 83. Rd8+ Ng8 84. Bc4 {Weighted Error Value: White=0.23 (precise) /Black=0.35} 1-0